fUST/lending_fUST_20250222
["ID","MTS","AMOUNT","RATE_DAILY","PERIOD"]
[354064727,1740219040807,-500.0,0.00013697,2]
[354064728,1740219040816,-500.0,0.00013697,2]
[354064729,1740219040825,-265.60437942,0.00013697,2]
[354064730,1740219040834,-500.0,0.00013697,2]
[354064731,1740219040843,-500.0,0.00013697,2]
[354064732,1740219040852,-500.0,0.00013697,2]
[354064733,1740219040862,-500.0,0.00013697,2]
[354064734,1740219040875,-500.0,0.00013697,2]
[354064735,1740219040884,-500.0,0.00013697,2]
[354064736,1740219040893,-206.63048105,0.00013697,2]
[354064737,1740219040903,-500.0,0.00013697,2]
[354064738,1740219040914,-500.0,0.00013697,2]
[354064739,1740219040923,-500.0,0.00013697,2]
[354064740,1740219040933,-500.0,0.00013697,2]
[354064741,1740219040943,-500.0,0.00013697,2]
[354064742,1740219040954,-500.0,0.00013697,2]
[354064743,1740219040964,-500.0,0.00013697,2]
[354064744,1740219040973,-500.0,0.00013697,2]
[354064745,1740219040983,-650.0,0.00013697,2]
[354064746,1740219040992,-500.0,0.00013697,2]
[354064747,1740219041003,-500.0,0.00013697,2]
[354064748,1740219041012,-500.0,0.00013697,2]
[354064749,1740219041023,-500.0,0.00013697,2]
[354064750,1740219041032,-500.0,0.00013697,2]
[354064751,1740219041041,-500.0,0.00013697,2]
[354064752,1740219041051,-500.0,0.00013697,2]
[354064753,1740219041062,-500.0,0.00013697,2]
[354064754,1740219041072,-465.55332351,0.00013697,2]
[354064755,1740219041081,-500.0,0.00013697,2]
[354064756,1740219041091,-500.0,0.00013698,2]
[354064757,1740219041101,-500.0,0.00013698,2]
[354064758,1740219041112,-500.0,0.00013698,2]
[354064759,1740219041122,-500.0,0.00013698,2]
[354064760,1740219041132,-646.81,0.00013698,2]
[354064761,1740219041142,-504.22125009,0.00013698,2]
[354064762,1740219041151,-500.0,0.00013698,2]
[354064763,1740219041162,-500.0,0.00013698,2]
[354064764,1740219041172,-500.0,0.00013698,2]
[354064765,1740219041182,-500.0,0.00013698,2]
[354064766,1740219041193,-550.56,0.00013698,2]
[354064767,1740219041202,-500.0,0.00013698,2]
[354064768,1740219041212,-500.0,0.00013698,2]
[354064769,1740219041223,-500.0,0.00013698,2]
[354064770,1740219041233,-500.0,0.00013698,2]
[354064771,1740219041242,-500.0,0.00013698,2]
[354064772,1740219041251,-500.0,0.00013698,2]
[354064773,1740219041260,-501.09746196,0.00013698,2]
[354064774,1740219041271,-500.80028926,0.00013698,2]
[354064775,1740219041280,-500.0,0.00013698,2]
[354064776,1740219041289,-501.25218372,0.00013698,2]
[354064777,1740219041298,-500.0,0.00013698,2]
[354064778,1740219041308,-502.50266932,0.00013698,2]
[354064779,1740219041317,-501.18124144,0.00013698,2]
[354064780,1740219041326,-500.58814673,0.00013698,2]
[354064781,1740219041335,-500.87644532,0.00013698,2]
[354064782,1740219041345,-500.0,0.00013698,2]
[354064783,1740219041354,-500.0,0.00013698,2]
[354064784,1740219041363,-156.68915484,0.00013698,2]
[354064785,1740219041374,-500.0,0.00013698,2]
[354064786,1740219041384,-367.24704796,0.00013698,2]
[354064787,1740219041394,-500.0,0.00013698,2]
[354064788,1740219041405,-500.0,0.00013698,2]
[354064789,1740219041414,-172.06385956,0.00013698,2]
[354064790,1740219041424,-500.0,0.00013698,2]
[354064791,1740219041434,-500.0,0.00013698,2]
[354064792,1740219041443,-500.0,0.00013698,2]
[354064793,1740219041452,-500.0,0.00013698,2]
[354064794,1740219041461,-500.0,0.00013698,2]
[354064795,1740219041471,-500.0,0.00013698,2]
[354064796,1740219041480,-500.0,0.00013698,2]
[354064797,1740219041489,-500.0,0.00013698,2]
[354064798,1740219041499,-500.0,0.00013698,2]
[354064799,1740219041508,-500.0,0.00013698,2]
[354064800,1740219041519,-500.0,0.00013698,2]
[354064801,1740219041529,-500.0,0.00013698,2]
[354064802,1740219041538,-500.0,0.00013698,2]
[354064803,1740219041547,-500.0,0.00013698,2]
[354064804,1740219041557,-500.0,0.00013698,2]
[354064805,1740219041567,-500.0,0.00013698,2]
[354064806,1740219041577,-500.0,0.00013698,2]
[354064807,1740219041586,-500.0,0.00013698,2]
[354064808,1740219041596,-500.0,0.00013698,2]
[354064809,1740219041606,-531.0,0.00013698,2]
[354064810,1740219041616,-500.0,0.00013698,2]
[354064811,1740219041626,-500.0,0.00013698,2]
[354064812,1740219041635,-500.0,0.00013698,2]
[354064813,1740219041645,-500.0,0.00013698,2]
[354064814,1740219041655,-500.0,0.00013698,2]
[354064815,1740219041664,-500.0,0.00013698,2]
[354064816,1740219041675,-500.0,0.00013698,2]
[354064817,1740219041685,-500.0,0.00013698,2]
[354064818,1740219041695,-500.0,0.00013698,2]
[354064819,1740219041705,-500.0,0.00013698,2]
[354064820,1740219041715,-500.0,0.00013698,2]
[354064821,1740219041725,-500.0,0.00013698,2]
[354064822,1740219041734,-500.0,0.00013698,2]
[354064823,1740219041744,-500.0,0.00013698,2]
[354064824,1740219041754,-500.0,0.00013698,2]
[354064825,1740219041764,-500.0,0.00013698,2]
[354064826,1740219041774,-500.0,0.00013698,2]
[354064827,1740219041783,-500.0,0.00013698,2]
[354064828,1740219041792,-500.0,0.00013698,2]
[354064829,1740219041801,-500.0,0.00013698,2]
[354064830,1740219041810,-535.12,0.00013698,2]
[354064831,1740219041819,-558.92,0.00013698,2]
[354064832,1740219041828,-500.0,0.00013698,2]
[354064833,1740219041838,-503.18670246,0.00013698,2]
[354064834,1740219041847,-506.43659212,0.00013698,2]
[354064835,1740219041856,-507.17438468,0.00013698,2]
[354064836,1740219041866,-500.0,0.00013698,2]
[354064837,1740219041879,-500.0,0.00013698,2]
[354064838,1740219041889,-500.0,0.00013698,2]
[354064839,1740219041899,-500.0,0.00013698,2]
[354064840,1740219041909,-500.0,0.00013698,2]
[354064841,1740219041918,-500.0,0.00013698,2]
[354064842,1740219041927,-506.38679745,0.00013698,2]
[354064843,1740219041936,-500.0,0.00013698,2]
[354064844,1740219041945,-500.0,0.00013698,2]
[354064845,1740219041956,-500.0,0.00013698,2]
[354064846,1740219041966,-500.0,0.00013698,2]
[354064847,1740219041975,-500.0,0.00013698,2]
[354064848,1740219041984,-500.0,0.00013698,2]
[354064849,1740219041993,-500.0,0.00013698,2]
[354064850,1740219042002,-500.0,0.00013698,2]
[354064851,1740219042011,-500.0,0.00013698,2]
[354064852,1740219042022,-500.0,0.00013698,2]
[354064853,1740219042031,-500.0,0.00013698,2]
[354064854,1740219042040,-500.0,0.00013698,2]
[354064855,1740219042049,-500.0,0.00013698,2]
[354064856,1740219042058,-562.14646434,0.00013698,2]
[354064857,1740219042068,-500.0,0.00013698,2]
[354064858,1740219042077,-500.0,0.00013698,2]
[354064859,1740219042086,-500.0,0.00013698,2]
[354064860,1740219042095,-500.0,0.00013698,2]
[354064861,1740219042104,-500.0,0.00013698,2]
[354064862,1740219042113,-500.0,0.00013698,2]
[354064863,1740219042123,-508.16623147,0.00013698,2]
[354064864,1740219042132,-500.0,0.00013698,2]
[354064865,1740219042141,-512.43876977,0.00013698,2]
[354064866,1740219042150,-500.0,0.00013698,2]
[354064867,1740219042159,-500.0,0.00013698,2]
[354064868,1740219042168,-500.0,0.00013698,2]
[354064869,1740219042177,-500.85966779,0.00013698,2]
[354064870,1740219042187,-503.01186314,0.00013698,2]
[354064871,1740219042196,-502.17946007,0.00013698,2]
[354064872,1740219042205,-513.37,0.00013698,2]
[354064873,1740219042215,-500.0,0.00013698,2]
[354064874,1740219042224,-500.0,0.00013698,2]
[354064875,1740219042233,-500.0,0.00013698,2]
[354064876,1740219042243,-500.0,0.00013698,2]
[354064877,1740219042252,-500.0,0.00013698,2]
[354064878,1740219042262,-500.0,0.00013698,2]
[354064879,1740219042273,-500.0,0.00013698,2]
[354064880,1740219042282,-500.0,0.00013698,2]
[354064881,1740219042291,-500.0,0.00013698,2]
[354064882,1740219042300,-500.0,0.00013698,2]
[354064883,1740219042310,-500.0,0.00013698,2]
[354064884,1740219042319,-503.42308978,0.00013698,2]
[354064885,1740219042329,-500.0,0.00013698,2]
[354064886,1740219042339,-500.0,0.00013698,2]
[354064887,1740219042348,-500.0,0.00013698,2]
[354064888,1740219042358,-5807.13,0.00013698,2]
[354064889,1740219042367,-5807.13,0.00013698,2]
[354064890,1740219042377,-5807.13,0.00013698,2]
[354064891,1740219042387,-5807.13,0.00013698,2]
[354064892,1740219042396,-5807.13,0.00013698,2]
[354064893,1740219042406,-472.20702433,0.00013698,2]
[354064894,1740219042415,-500.0,0.00013698,2]
[354064895,1740219042425,-5807.13,0.00013698,2]
[354064896,1740219042434,-5807.13,0.00013698,2]
[354064897,1740219042443,-5807.13,0.00013698,2]
[354064898,1740219042453,-500.0,0.00013698,2]
[354064899,1740219042462,-500.0,0.00013698,2]
[354064900,1740219042471,-500.0,0.00013698,2]
[354064901,1740219042480,-502.77730454,0.00013698,2]
[354064902,1740219042490,-500.0,0.00013698,2]
[354064903,1740219042499,-500.0,0.00013698,2]
[354064904,1740219042509,-189.8,0.00013698,2]
[354064905,1740219042519,-514.1180904,0.00013698,2]
[354064906,1740219042528,-224.86783653,0.00013698,2]
[354064907,1740219042537,-500.0,0.00013698,2]
[354064908,1740219042546,-500.0,0.00013698,2]
[354064909,1740219042556,-500.0,0.00013698,2]
[354064910,1740219042565,-500.0,0.00013698,2]
[354064911,1740219042575,-500.0,0.00013698,2]
[354064912,1740219042584,-510.04,0.00013698,2]
[354064913,1740219042593,-524.89,0.00013698,2]
[354064914,1740219042602,-500.0,0.00013698,2]
[354064915,1740219042612,-500.0,0.00013698,2]
[354064916,1740219042621,-500.0,0.00013698,2]
[354064917,1740219042630,-629.6,0.00013698,2]
[354064918,1740219042639,-500.0,0.00013698,2]
[354064919,1740219042736,-500.0,0.00013698,2]
[354064920,1740219042746,-501.75558743,0.00013698,2]
[354064921,1740219042756,-500.0,0.00013698,2]
[354064922,1740219042765,-500.0,0.00013698,2]
[354064923,1740219042774,-500.0,0.00013698,2]
[354064924,1740219042784,-500.0,0.00013698,2]
[354064925,1740219042793,-500.0,0.00013698,2]
[354064926,1740219042802,-500.0,0.00013698,2]
[354064927,1740219042812,-500.0,0.00013698,2]
[354064928,1740219042821,-500.0,0.00013698,2]
[354064929,1740219042831,-500.0,0.00013698,2]
[354064931,1740219042840,-500.0,0.00013698,2]
[354064932,1740219042849,-500.0,0.00013698,2]
[354064933,1740219042858,-500.0,0.00013698,2]
[354064934,1740219042871,-500.0,0.00013698,2]
[354064935,1740219042880,-500.0,0.00013698,2]
[354064936,1740219042889,-500.0,0.00013698,2]
[354064937,1740219042898,-500.0,0.00013698,2]
[354064938,1740219042908,-643.00159679,0.00013698,2]
[354064939,1740219042917,-500.0,0.00013698,2]
[354064940,1740219042926,-500.0,0.00013698,2]
[354064941,1740219042935,-500.0,0.00013698,2]
[354064942,1740219042946,-500.0,0.00013698,2]
[354064943,1740219042955,-579.43067114,0.00013698,2]
[354064944,1740219042964,-500.0,0.00013698,2]
[354064945,1740219042973,-512.66101251,0.00013698,2]
[354064947,1740219042982,-500.0,0.00013698,2]
[354064948,1740219042991,-500.20691015,0.00013698,2]
[354064949,1740219043000,-500.0,0.00013698,2]
[354064950,1740219043009,-3028.51,0.00013698,2]
[354064952,1740219043019,-560.99881457,0.00013698,2]
[354064953,1740219043028,-514.17,0.00013698,2]
[354064954,1740219043037,-501.27956536,0.00013698,2]
[354064955,1740219043046,-500.0,0.00013698,2]
[354064956,1740219043055,-500.0,0.00013698,2]
[354064957,1740219043064,-500.0,0.00013698,2]
[354064958,1740219043073,-500.0,0.00013698,2]
[354064959,1740219043082,-500.0,0.00013698,2]
[354064960,1740219043091,-500.0,0.00013698,2]
[354064961,1740219043100,-500.0,0.00013698,2]
[354064962,1740219043109,-500.0,0.00013698,2]
[354064963,1740219043118,-500.0,0.00013698,2]
[354064964,1740219043127,-249.78234777,0.00013698,2]
[354064965,1740219043137,-610.07552705,0.00013698,2]
[354064966,1740219043146,-500.0,0.00013698,2]
[354064967,1740219043155,-500.36158102,0.00013698,2]
[354064968,1740219043164,-500.0,0.00013698,2]
[354064969,1740219043174,-500.45615642,0.00013698,2]
[354064970,1740219043183,-500.0,0.00013698,2]
[354064971,1740219043192,-500.0,0.00013698,2]
[354064972,1740219043201,-504.8694788,0.00013698,2]
[354064973,1740219043210,-500.0,0.00013698,2]
[354064974,1740219043219,-500.0,0.00013698,2]
[354064975,1740219043228,-500.69233031,0.00013698,2]
[354064976,1740219043237,-500.0,0.00013698,2]
[354064977,1740219043246,-500.72884407,0.00013698,2]
[354064978,1740219043256,-500.0,0.00013698,2]
[354064979,1740219043265,-156.7748961,0.00013698,2]
[354064980,1740219043275,-500.0,0.00013698,2]
[354064981,1740219043284,-500.0,0.00013698,2]
[354064982,1740219043293,-500.0,0.00013698,2]
[354064983,1740219043302,-500.0,0.00013698,2]
[354064984,1740219043311,-1114.84,0.00013698,2]
[354064985,1740219043320,-2141.58,0.00013698,2]
[354064986,1740219043330,-500.0,0.00013698,2]
[354064987,1740219043339,-4559.07,0.00013698,2]
[354064988,1740219043349,-500.0,0.00013698,2]
[354064989,1740219043358,-500.0,0.00013698,2]
[354064990,1740219043367,-508.99181733,0.00013698,2]
[354064991,1740219043376,-500.51320805,0.00013698,2]
[354064992,1740219043385,-500.0,0.00013698,2]
[354064993,1740219043394,-500.0,0.00013698,2]
[354064994,1740219043403,-500.0,0.00013698,2]
[354064995,1740219043413,-500.0,0.00013698,2]
[354064996,1740219043422,-299.06579271,0.00013698,2]
[354064997,1740219043430,-597.83,0.00013698,2]
[354064998,1740219043440,-500.46806793,0.00013698,2]
[354064999,1740219043449,-500.0,0.00013698,2]
[354065000,1740219043458,-525.56723237,0.00013698,2]
[354065001,1740219043469,-500.0,0.00013698,2]
[354065002,1740219043479,-500.0,0.00013698,2]
[354065003,1740219043488,-500.0,0.00013698,2]
[354065004,1740219043498,-500.0,0.00013698,2]
[354065005,1740219043509,-500.0,0.00013698,2]
[354065006,1740219043521,-500.0,0.00013698,2]
[354065007,1740219043530,-500.0,0.00013698,2]
[354065008,1740219043540,-503.40181866,0.00013698,2]
[354065009,1740219043549,-500.0,0.00013698,2]
[354065010,1740219043559,-1026.08,0.00013698,2]
[354065011,1740219043569,-500.0,0.00013698,2]
[354065012,1740219043579,-500.0,0.00013698,2]
[354065013,1740219043588,-500.0,0.00013698,2]
[354065014,1740219043597,-500.74819575,0.00013698,2]
[354065015,1740219043607,-501.35842845,0.00013698,2]
[354065016,1740219043617,-307.88782354,0.00013698,2]
[354065017,1740219043627,-500.0,0.00013698,2]
[354065018,1740219043637,-500.0,0.00013698,2]
[354065019,1740219043646,-500.0,0.00013698,2]
[354065020,1740219043656,-500.0,0.00013698,2]
[354065021,1740219043665,-500.0,0.00013698,2]
[354065023,1740219043675,-502.01386443,0.00013698,2]
[354065024,1740219043685,-500.0,0.00013698,2]
[354065026,1740219043694,-500.0,0.00013698,2]
[354065027,1740219043703,-500.0,0.00013698,2]
[354065028,1740219043713,-500.0,0.00013698,2]
[354065029,1740219043722,-500.0,0.00013698,2]
[354065030,1740219043732,-500.0,0.00013698,2]
[354065031,1740219043741,-500.0,0.00013698,2]
[354065032,1740219043750,-500.0,0.00013698,2]
[354065033,1740219043759,-501.46946022,0.00013698,2]
[354065034,1740219043769,-500.0,0.00013698,2]
[354065035,1740219043778,-500.0,0.00013698,2]
[354065036,1740219043787,-500.0,0.00013698,2]
[354065037,1740219043796,-500.0,0.00013698,2]
[354065038,1740219043806,-500.0,0.00013698,2]
[354065039,1740219043816,-501.56183691,0.00013698,2]
[354065040,1740219043825,-500.0,0.00013698,2]
[354065041,1740219043834,-727.04,0.00013698,2]
[354065042,1740219043843,-500.0,0.00013698,2]
[354065043,1740219043852,-500.0,0.00013698,2]
[354065044,1740219043861,-500.0,0.00013698,2]
[354065045,1740219043872,-500.0,0.00013698,2]
[354065046,1740219043882,-169.73733752,0.00013698,2]
[354065047,1740219043891,-300.0,0.00013698,2]
[354065048,1740219043900,-247.03872973,0.00013698,2]
[354065049,1740219043909,-500.0,0.00013698,2]
[354065050,1740219043919,-500.0,0.00013698,2]
[354065051,1740219043928,-1000.0,0.00013698,2]
[354065052,1740219043938,-226.8432109,0.00013699,2]
[354065053,1740219043948,-167.085129,0.00013699,2]
[354065054,1740219043959,-500.0,0.00013779,2]
[354065055,1740219043968,-500.0,0.00013779,2]
[354065056,1740219043977,-5807.13,0.00013779,2]
[354065057,1740219043986,-640.77,0.0001378,2]
[354065058,1740219043995,-500.0,0.0001378,2]
[354065059,1740219044004,-535.12,0.0001378,2]
[354065060,1740219044014,-500.0,0.0001378,2]
[354065061,1740219044024,-500.0,0.0001378,2]
[354065062,1740219044033,-500.0,0.0001378,2]
[354065063,1740219044042,-524.89,0.0001378,2]
[354065064,1740219044051,-500.0,0.0001378,2]
[354065065,1740219044061,-326.88,0.0001378,2]
[354065066,1740219044070,-154.47182886,0.0001378,2]
[354065067,1740219044079,-500.0,0.0001378,2]
[354065068,1740219044088,-3028.51,0.0001378,2]
[354065069,1740219044097,-514.17,0.0001378,2]
[354065070,1740219044106,-500.0,0.0001378,2]
[354065071,1740219044115,-503.81,0.0001378,2]
[354065072,1740219044124,-500.0,0.0001378,2]
[354065073,1740219044133,-500.0,0.0001378,2]
[354065074,1740219044142,-1114.84,0.0001378,2]
[354065075,1740219044151,-2141.58,0.0001378,2]
[354065076,1740219044161,-4559.07,0.0001378,2]
[354065077,1740219044170,-500.0,0.0001378,2]
[354065078,1740219044179,-1026.08,0.0001378,2]
[354065079,1740219044189,-500.0,0.0001378,2]
[354065080,1740219044198,-500.0,0.0001378,2]
[354065081,1740219044208,-500.0,0.0001378,2]
[354065082,1740219044217,-500.0,0.0001378,2]
[354065083,1740219044226,-500.50079621,0.0001378,2]
[354065084,1740219044235,-500.0,0.0001378,2]
[354065085,1740219044244,-500.0,0.0001378,2]
[354065086,1740219044254,-500.0,0.0001378,2]
[354065087,1740219044263,-602.78,0.0001378,2]
[354065088,1740219044273,-727.04,0.0001378,2]
[354065089,1740219044283,-500.0,0.0001378,2]
[354065090,1740219044291,-439.13225012,0.00013862,2]
[354065091,1740219044301,-500.0,0.00013862,2]
[354065092,1740219044310,-5807.13,0.00013862,2]
[354065093,1740219044319,-500.0,0.00013863,2]
[354065094,1740219044328,-535.12,0.00013863,2]
[354065095,1740219044337,-500.0,0.00013863,2]
[354065096,1740219044346,-524.89,0.00013863,2]
[354065097,1740219044355,-589.67,0.00013863,2]
[354065098,1740219044364,-500.0,0.00013863,2]
[354065099,1740219044373,-3028.51,0.00013863,2]
[354065100,1740219044382,-514.17,0.00013863,2]
[354065101,1740219044391,-500.0,0.00013863,2]
[354065102,1740219044400,-500.0,0.00013863,2]
[354065103,1740219044409,-1114.84,0.00013863,2]
[354065104,1740219044419,-2141.58,0.00013863,2]
[354065105,1740219044427,-4559.07,0.00013863,2]
[354065106,1740219044436,-1026.08,0.00013863,2]
[354065107,1740219044446,-500.0,0.00013863,2]
[354065108,1740219044455,-500.0,0.00013863,2]
[354065109,1740219044464,-500.0,0.00013863,2]
[354065110,1740219044473,-500.0,0.00013863,2]
[354065111,1740219044483,-500.0,0.00013863,2]
[354065112,1740219044491,-727.04,0.00013863,2]
[354065113,1740219044500,-675.24516601,0.00013906,2]
[354065114,1740219044510,-5807.13,0.0001394,2]
[354065115,1740219044519,-500.0,0.00013941,2]
[354065116,1740219044528,-500.0,0.00013943,2]
[354065117,1740219044537,-569.53726686,0.00013944,2]
[354065118,1740219044547,-521.6836215,0.00013944,2]
[354065119,1740219044556,-500.0,0.00013944,2]
[354065120,1740219044566,-500.0,0.00013944,2]
[354065121,1740219044575,-500.0,0.00013944,2]
[354065122,1740219044584,-5807.13,0.00013944,2]
[354065123,1740219044594,-500.0,0.00013945,2]
[354065124,1740219044603,-535.12,0.00013945,2]
[354065125,1740219044612,-500.0,0.00013945,2]
[354065126,1740219044621,-524.89,0.00013945,2]
[354065127,1740219044631,-3028.51,0.00013945,2]
[354065128,1740219044640,-514.17,0.00013945,2]
[354065129,1740219044649,-500.0,0.00013945,2]
[354065130,1740219044659,-500.0,0.00013945,2]
[354065131,1740219044668,-1114.84,0.00013945,2]
[354065132,1740219044677,-2141.58,0.00013945,2]
[354065133,1740219044687,-4559.07,0.00013945,2]
[354065134,1740219044697,-1026.08,0.00013945,2]
[354065135,1740219044706,-500.0,0.00013945,2]
[354065136,1740219044716,-500.0,0.00013945,2]
[354065137,1740219044725,-500.0,0.00013945,2]
[354065138,1740219044734,-500.0,0.00013945,2]
[354065139,1740219044743,-727.04,0.00013945,2]
[354065140,1740219044752,-1000.0,0.00014,14]
[354065141,1740219044761,-38984.91922843,0.00014009,2]
[354065142,1740219044771,-500.0,0.00014024,2]
[354065143,1740219044781,-500.0,0.00014025,2]
[354065144,1740219044790,-500.0,0.00014025,2]
[354065145,1740219044800,-165.17002578,0.00014025,2]
[354065146,1740219044809,-500.0,0.00014025,2]
[354065147,1740219044818,-218.79893977,0.00014025,2]
[354065148,1740219044827,-500.0,0.00014026,2]
[354065149,1740219044836,-5807.13,0.00014026,2]
[354065150,1740219044845,-500.0,0.00014027,2]
[354065151,1740219044854,-535.12,0.00014027,2]
[354065152,1740219044864,-500.0,0.00014027,2]
[354065153,1740219044875,-524.89,0.00014027,2]
[354065154,1740219044886,-3028.51,0.00014027,2]
[354065155,1740219044895,-514.17,0.00014027,2]
[354065156,1740219044987,-500.0,0.00014027,2]
[354065157,1740219044997,-500.0,0.00014027,2]
[354065158,1740219045007,-1114.84,0.00014027,2]
[354065159,1740219045017,-2141.58,0.00014027,2]
[354065160,1740219045027,-4559.07,0.00014027,2]
[354065161,1740219045036,-1026.08,0.00014027,2]
[354065162,1740219045046,-500.0,0.00014027,2]
[354065163,1740219045055,-500.0,0.00014027,2]
[354065164,1740219045064,-391.92,0.00014027,2]
[354065165,1740219045073,-500.0,0.00014027,2]
[354065166,1740219045083,-727.04,0.00014027,2]
[354065167,1740219045091,-151.0,0.000141,2]
[354065168,1740219045101,-5807.13,0.00014108,2]
[354065169,1740219045110,-500.0,0.00014109,2]
[354065170,1740219045119,-535.12,0.00014109,2]
[354065171,1740219045128,-500.0,0.00014109,2]
[354065172,1740219045138,-524.89,0.00014109,2]
[354065173,1740219045147,-3028.51,0.00014109,2]
[354065174,1740219045156,-514.17,0.00014109,2]
[354065175,1740219045165,-500.0,0.00014109,2]
[354065176,1740219045175,-263.77,0.00014109,2]
[354065177,1740219045184,-1114.84,0.00014109,2]
[354065178,1740219045193,-2141.58,0.00014109,2]
[354065179,1740219045203,-4559.07,0.00014109,2]
[354065180,1740219045212,-1026.08,0.00014109,2]
[354065181,1740219045221,-500.0,0.00014109,2]
[354065182,1740219045231,-500.0,0.00014109,2]
[354065183,1740219045241,-500.0,0.00014109,2]
[354065184,1740219045250,-727.04,0.00014109,2]
[354065185,1740219045260,-1272.19973445,0.00014116,2]
[354065186,1740219045270,-367.57129487,0.00014188,2]
[354065187,1740219045280,-5807.13,0.00014189,2]
[354065188,1740219045289,-500.0,0.0001419,2]
[354065189,1740219045299,-500.0,0.00014191,2]
[354065190,1740219045308,-535.12,0.00014191,2]
[354065191,1740219045318,-500.0,0.00014191,2]
[354065192,1740219045327,-524.89,0.00014191,2]
[354065193,1740219045336,-3028.51,0.00014191,2]
[354065194,1740219045345,-514.17,0.00014191,2]
[354065195,1740219045355,-500.0,0.00014191,2]
[354065196,1740219045364,-1114.84,0.00014191,2]
[354065197,1740219045373,-2141.58,0.00014191,2]
[354065198,1740219045382,-4559.07,0.00014191,2]
[354065199,1740219045391,-1026.08,0.00014191,2]
[354065200,1740219045400,-500.0,0.00014191,2]
[354065201,1740219045410,-500.0,0.00014191,2]
[354065202,1740219045419,-500.0,0.00014191,2]
[354065203,1740219045429,-727.04,0.00014191,2]
[354065204,1740219045438,-151.0,0.000142,2]
[354065205,1740219045448,-675.24516601,0.00014215,2]
[354065206,1740219045457,-322.13451515,0.00014221,2]
[354065207,1740219045466,-506.01145307,0.00014221,2]
[354065208,1740219045475,-557.92466583,0.00014221,2]
[354065209,1740219045484,-500.0,0.00014221,2]
[354065210,1740219045494,-5807.13,0.00014272,2]
[354065211,1740219045503,-500.0,0.00014273,2]
[354065212,1740219045512,-535.12,0.00014273,2]
[354065213,1740219045523,-500.0,0.00014273,2]
[354065214,1740219045532,-524.89,0.00014273,2]
[354065215,1740219045542,-3028.51,0.00014273,2]
[354065216,1740219045551,-514.17,0.00014273,2]
[354065217,1740219045561,-500.0,0.00014273,2]
[354065218,1740219045571,-1114.84,0.00014273,2]
[354065219,1740219045581,-2141.58,0.00014273,2]
[354065220,1740219045590,-4559.07,0.00014273,2]
[354065221,1740219045599,-1026.08,0.00014273,2]
[354065222,1740219045609,-500.0,0.00014273,2]
[354065223,1740219045618,-500.0,0.00014273,2]
[354065224,1740219045627,-500.0,0.00014273,2]
[354065225,1740219045636,-727.04,0.00014273,2]
[354065226,1740219045646,-151.0,0.000143,2]
[354065227,1740219045655,-756.93987334,0.00014329,2]
[354065228,1740219045664,-5807.13,0.00014355,2]
[354065229,1740219045674,-500.0,0.00014356,2]
[354065230,1740219045683,-535.12,0.00014356,2]
[354065231,1740219045693,-500.0,0.00014356,2]